fUST/lending_fUST_20250206
["ID","MTS","AMOUNT","RATE_DAILY","PERIOD"]
[351894928,1738830647721,-1975.0,0.00014315,2]
[351894929,1738830647731,-541.988,0.00014315,2]
[351894930,1738830647743,-2297.0,0.00014315,2]
[351894931,1738830647754,-396.0,0.00014315,2]
[351894932,1738830647764,-151.0,0.00014315,2]
[351894933,1738830647774,-151.0,0.00014315,2]
[351894934,1738830647784,-151.0,0.00014315,2]
[351894935,1738830647796,-151.0,0.00014315,2]
[351894936,1738830647807,-151.0,0.00014315,2]
[351894937,1738830647818,-151.0,0.00014315,2]
[351894938,1738830647827,-151.0,0.00014315,2]
[351894939,1738830647839,-151.0,0.00014315,2]
[351894940,1738830647849,-500.0,0.00014328,2]
[351894941,1738830647860,-500.0,0.00014328,2]
[351894942,1738830647871,-7083.40038822,0.00014343,2]
[351894943,1738830647881,-506.12498987,0.00014376,2]
[351894944,1738830647892,-583.41026086,0.00014376,2]
[351894945,1738830647902,-507.99791894,0.00014376,2]
[351894946,1738830647914,-500.0,0.00014383,2]
[351894947,1738830647925,-500.0,0.00014383,2]
[351894948,1738830647935,-506.41,0.00014383,2]
[351894949,1738830647946,-500.0,0.00014383,2]
[351894950,1738830647958,-500.0,0.00014383,2]
[351894951,1738830647969,-500.0,0.00014383,2]
[351894952,1738830647979,-1227.51,0.00014383,2]
[351894953,1738830647989,-500.0,0.00014383,2]
[351894954,1738830648034,-500.0,0.00014383,2]
[351894955,1738830648045,-862.32,0.00014383,2]
[351894956,1738830648056,-500.0,0.00014383,2]
[351894957,1738830648067,-588.28,0.00014383,2]
[351894958,1738830648077,-228.36157386,0.00014383,2]
[351894959,1738830648087,-500.0,0.00014383,2]
[351894960,1738830648098,-644.59,0.00014383,2]
[351894961,1738830648108,-500.0,0.00014383,2]
[351894962,1738830648119,-770.28,0.00014383,2]
[351894963,1738830648130,-500.0,0.00014383,2]
[351894964,1738830648141,-500.0,0.00014383,2]
[351894965,1738830648152,-555.92,0.00014383,2]
[351894966,1738830648164,-1058.7,0.00014383,2]
[351894967,1738830648182,-533.45,0.00014383,2]
[351894968,1738830648198,-514.94,0.00014383,2]
[351894969,1738830648209,-500.0,0.00014383,2]
[351894970,1738830648221,-500.0,0.00014383,2]
[351894971,1738830648232,-500.0,0.00014383,2]
[351894972,1738830648248,-500.0,0.00014383,2]
[351894973,1738830648258,-500.0,0.00014383,2]
[351894974,1738830648269,-500.0,0.00014383,2]
[351894975,1738830648282,-936.17,0.00014383,2]
[351894976,1738830648292,-500.0,0.00014383,2]
[351894977,1738830648302,-500.0,0.00014383,2]
[351894978,1738830648313,-701.02,0.00014383,2]
[351894979,1738830648323,-500.0,0.00014383,2]
[351894980,1738830648337,-1028.5,0.00014383,2]
[351894981,1738830648348,-500.0,0.00014383,2]
[351894982,1738830648360,-1162.68,0.00014383,2]
[351894983,1738830648373,-500.0,0.00014383,2]
[351894984,1738830648385,-500.0,0.00014383,2]
[351894985,1738830648397,-637.29,0.00014383,2]
[351894986,1738830648409,-500.0,0.00014383,2]
[351894987,1738830648421,-500.0,0.00014383,2]
[351894988,1738830648432,-14910.05,0.00014383,2]
[351894989,1738830648443,-598.64,0.00014383,2]
[351894990,1738830648454,-250.258193,0.00014383,2]
[351894991,1738830648464,-500.0,0.00014383,2]
[351894992,1738830648475,-445.39061346,0.00014383,2]
[351894993,1738830648486,-1525.62,0.00014383,2]
[351894994,1738830648496,-728.43,0.00014383,2]
[351894995,1738830648507,-500.0,0.00014383,2]
[351894996,1738830648518,-500.0,0.00014383,2]
[351894997,1738830648529,-835.65,0.00014383,2]
[351894998,1738830648539,-500.0,0.00014383,2]
[351894999,1738830648550,-151.0,0.00014383,2]
[351895000,1738830648561,-2540.5,0.00014383,2]
[351895001,1738830648571,-500.0,0.00014383,2]
[351895002,1738830648582,-1406.21,0.00014383,2]
[351895003,1738830648592,-1238.74,0.00014383,2]
[351895004,1738830648602,-626.73,0.00014383,2]
[351895005,1738830648612,-2627.15,0.00014383,2]
[351895006,1738830648622,-500.0,0.00014383,2]
[351895007,1738830648633,-508.11,0.00014383,2]
[351895008,1738830648643,-11539.52,0.00014383,2]
[351895009,1738830648654,-1130.75,0.00014383,2]
[351895010,1738830648666,-811.81,0.00014383,2]
[351895011,1738830648676,-2992.27,0.00014383,2]
[351895012,1738830648686,-1176.79,0.00014383,2]
[351895013,1738830648696,-944.65,0.00014383,2]
[351895014,1738830648706,-2882.5,0.00014383,2]
[351895015,1738830648716,-500.0,0.00014383,2]
[351895016,1738830648726,-500.0,0.00014383,2]
[351895017,1738830648737,-6622.41,0.00014383,2]
[351895018,1738830648746,-1175.33,0.00014383,2]
[351895019,1738830648756,-963.23,0.00014383,2]
[351895020,1738830648767,-500.0,0.00014383,2]
[351895021,1738830648776,-500.0,0.00014383,2]
[351895022,1738830648786,-500.0,0.00014383,2]
[351895023,1738830648804,-500.0,0.00014383,2]
[351895024,1738830648821,-500.0,0.00014383,2]
[351895025,1738830648830,-34307.6,0.00014383,2]
[351895026,1738830648840,-23059.12896331,0.00014383,2]
[351895027,1738830648850,-1391.62,0.00014383,2]
[351895028,1738830648860,-548.4,0.00014383,2]
[351895029,1738830648870,-1805.15,0.00014383,2]
[351895030,1738830648880,-3532.43,0.00014383,2]
[351895031,1738830648889,-649.87,0.00014383,2]
[351895032,1738830648899,-2696.39,0.00014383,2]
[351895033,1738830648909,-1105.22,0.00014383,2]
[351895034,1738830648919,-500.0,0.00014383,2]
[351895035,1738830648928,-500.0,0.00014383,2]
[351895036,1738830648938,-1723.85,0.00014383,2]
[351895037,1738830648947,-1688.46,0.00014383,2]
[351895038,1738830648956,-644.26935706,0.00014383,2]
[351895039,1738830648965,-553.94,0.00014383,2]
[351895040,1738830648975,-1448.84,0.00014383,2]
[351895041,1738830648984,-1550.13,0.00014383,2]
[351895042,1738830648994,-1329.65,0.00014383,2]
[351895043,1738830649004,-1133.75,0.00014383,2]
[351895044,1738830649013,-1849.8,0.00014383,2]
[351895045,1738830649023,-501.4,0.00014383,2]
[351895046,1738830649032,-154.343146,0.00014383,2]
[351895047,1738830649041,-500.0,0.00014383,2]
[351895048,1738830649051,-1110.39,0.00014383,2]
[351895049,1738830649060,-582.81,0.00014383,2]
[351895050,1738830649071,-561.13,0.00014383,2]
[351895051,1738830649081,-500.0,0.00014383,2]
[351895052,1738830649090,-500.0,0.00014383,2]
[351895053,1738830649099,-500.0,0.00014383,2]
[351895054,1738830649111,-3440.22,0.00014383,2]
[351895055,1738830649121,-500.0,0.00014383,2]
[351895056,1738830649131,-4547.26,0.00014383,2]
[351895057,1738830649142,-603.95,0.00014383,2]
[351895058,1738830649161,-500.0,0.00014383,2]
[351895059,1738830649176,-8316.26,0.00014383,2]
[351895060,1738830649186,-1380.24,0.00014383,2]
[351895061,1738830649195,-500.0,0.00014383,2]
[351895062,1738830649205,-500.205,0.00014395,2]
[351895063,1738830649215,-1200.0,0.00014395,2]
[351895064,1738830649225,-151.0,0.00014408,2]
[351895065,1738830649234,-2440.89635023,0.0001442,2]
[351895066,1738830649244,-1522.58912945,0.00014452,2]
[351895067,1738830649253,-500.0,0.00014482,2]
[351895068,1738830649263,-507.98663694,0.000145,2]
[351895069,1738830649274,-157.0,0.00014501,2]
[351895070,1738830649283,-157.99,0.00014501,2]
[351895071,1738830649292,-500.0,0.0001452,2]
[351895072,1738830649301,-188.202912,0.0001452,2]
[351895073,1738830649311,-500.0,0.0001452,2]
[351895074,1738830649320,-506.41,0.0001452,2]
[351895075,1738830649331,-500.0,0.0001452,2]
[351895076,1738830649341,-500.0,0.0001452,2]
[351895077,1738830649351,-500.0,0.0001452,2]
[351895078,1738830649360,-1227.51,0.0001452,2]
[351895079,1738830649369,-537.82404507,0.0001452,2]
[351895080,1738830649379,-500.0,0.0001452,2]
[351895081,1738830649388,-862.32,0.0001452,2]
[351895082,1738830649398,-500.0,0.0001452,2]
[351895083,1738830649408,-588.28,0.0001452,2]
[351895084,1738830649419,-500.0,0.0001452,2]
[351895085,1738830649428,-644.59,0.0001452,2]
[351895086,1738830649438,-500.0,0.0001452,2]
[351895087,1738830649447,-770.28,0.0001452,2]
[351895088,1738830649456,-500.0,0.0001452,2]
[351895089,1738830649466,-500.0,0.0001452,2]
[351895090,1738830649475,-555.92,0.0001452,2]
[351895091,1738830649485,-1058.7,0.0001452,2]
[351895092,1738830649494,-533.45,0.0001452,2]
[351895093,1738830649503,-514.94,0.0001452,2]
[351895094,1738830649512,-500.0,0.0001452,2]
[351895095,1738830649522,-500.0,0.0001452,2]
[351895096,1738830649532,-500.0,0.0001452,2]
[351895097,1738830649541,-322.43774815,0.0001452,2]
[351895098,1738830649551,-500.0,0.0001452,2]
[351895099,1738830649560,-500.0,0.0001452,2]
[351895100,1738830649570,-936.17,0.0001452,2]
[351895101,1738830649579,-500.0,0.0001452,2]
[351895102,1738830649588,-500.0,0.0001452,2]
[351895103,1738830649597,-701.02,0.0001452,2]
[351895104,1738830649607,-500.0,0.0001452,2]
[351895105,1738830649616,-1028.5,0.0001452,2]
[351895106,1738830649625,-500.0,0.0001452,2]
[351895107,1738830649634,-1162.68,0.0001452,2]
[351895108,1738830649643,-500.0,0.0001452,2]
[351895109,1738830649652,-500.0,0.0001452,2]
[351895110,1738830649662,-637.29,0.0001452,2]
[351895111,1738830649671,-500.0,0.0001452,2]
[351895112,1738830649681,-151.0,0.0001452,2]
[351895113,1738830649690,-500.0,0.0001452,2]
[351895114,1738830649700,-14910.05,0.0001452,2]
[351895115,1738830649710,-598.64,0.0001452,2]
[351895116,1738830649720,-151.0,0.0001452,2]
[351895117,1738830649729,-500.0,0.0001452,2]
[351895118,1738830649738,-151.0,0.0001452,2]
[351895119,1738830649748,-1525.62,0.0001452,2]
[351895120,1738830649757,-728.43,0.0001452,2]
[351895121,1738830649767,-500.0,0.0001452,2]
[351895122,1738830649776,-500.0,0.0001452,2]
[351895123,1738830649787,-835.65,0.0001452,2]
[351895124,1738830649799,-500.0,0.0001452,2]
[351895125,1738830649809,-151.0,0.0001452,2]
[351895126,1738830649819,-2540.5,0.0001452,2]
[351895127,1738830649828,-500.0,0.0001452,2]
[351895128,1738830649838,-1406.21,0.0001452,2]
[351895129,1738830649848,-1238.74,0.0001452,2]
[351895130,1738830649857,-626.73,0.0001452,2]
[351895131,1738830649866,-2627.15,0.0001452,2]
[351895132,1738830649876,-500.0,0.0001452,2]
[351895133,1738830649886,-508.11,0.0001452,2]
[351895134,1738830649895,-151.0,0.0001452,2]
[351895135,1738830649904,-11539.52,0.0001452,2]
[351895136,1738830649914,-1130.75,0.0001452,2]
[351895137,1738830649923,-151.0,0.0001452,2]
[351895138,1738830649932,-811.81,0.0001452,2]
[351895139,1738830649941,-2992.27,0.0001452,2]
[351895140,1738830649950,-151.0,0.0001452,2]
[351895141,1738830649959,-1176.79,0.0001452,2]
[351895142,1738830649968,-151.0,0.0001452,2]
[351895143,1738830649977,-944.65,0.0001452,2]
[351895144,1738830649987,-2882.5,0.0001452,2]
[351895145,1738830649996,-151.0,0.0001452,2]
[351895146,1738830650006,-500.0,0.0001452,2]
[351895147,1738830650015,-500.0,0.0001452,2]
[351895148,1738830650024,-180.399138,0.0001452,2]
[351895149,1738830650033,-6622.41,0.0001452,2]
[351895150,1738830650042,-1175.33,0.0001452,2]
[351895151,1738830650052,-151.0,0.0001452,2]
[351895152,1738830650061,-963.23,0.0001452,2]
[351895153,1738830650071,-500.0,0.0001452,2]
[351895154,1738830650082,-500.0,0.0001452,2]
[351895155,1738830650091,-500.0,0.0001452,2]
[351895156,1738830650101,-500.0,0.0001452,2]
[351895157,1738830650110,-500.0,0.0001452,2]
[351895158,1738830650120,-34307.6,0.0001452,2]
[351895159,1738830650130,-1391.62,0.0001452,2]
[351895160,1738830650140,-548.4,0.0001452,2]
[351895161,1738830650150,-1805.15,0.0001452,2]
[351895162,1738830650160,-3532.43,0.0001452,2]
[351895163,1738830650170,-649.87,0.0001452,2]
[351895164,1738830650179,-2696.39,0.0001452,2]
[351895165,1738830650189,-1105.22,0.0001452,2]
[351895166,1738830650199,-500.0,0.0001452,2]
[351895167,1738830650208,-500.0,0.0001452,2]
[351895168,1738830650218,-1723.85,0.0001452,2]
[351895169,1738830650228,-1688.46,0.0001452,2]
[351895170,1738830650237,-553.94,0.0001452,2]
[351895171,1738830650246,-1448.84,0.0001452,2]
[351895172,1738830650256,-1550.13,0.0001452,2]
[351895173,1738830650265,-1329.65,0.0001452,2]
[351895174,1738830650275,-151.0,0.0001452,2]
[351895175,1738830650285,-199.453916,0.0001452,2]
[351895176,1738830650295,-151.0,0.0001452,2]
[351895177,1738830650304,-1133.75,0.0001452,2]
[351895178,1738830650314,-1849.8,0.0001452,2]
[351895179,1738830650323,-199.453916,0.0001452,2]
[351895180,1738830650333,-501.4,0.0001452,2]
[351895181,1738830650342,-405.78997083,0.0001452,2]
[351895182,1738830650352,-1110.39,0.0001452,2]
[351895183,1738830650361,-582.81,0.0001452,2]
[351895184,1738830650371,-561.13,0.0001452,2]
[351895185,1738830650381,-500.0,0.0001452,2]
[351895186,1738830650390,-500.0,0.0001452,2]
[351895187,1738830650400,-500.0,0.0001452,2]
[351895188,1738830650409,-3440.22,0.0001452,2]
[351895189,1738830650419,-500.0,0.0001452,2]
[351895190,1738830650428,-4547.26,0.0001452,2]
[351895191,1738830650438,-603.95,0.0001452,2]
[351895192,1738830650448,-500.0,0.0001452,2]
[351895193,1738830650466,-8316.26,0.0001452,2]
[351895194,1738830650475,-1380.24,0.0001452,2]
[351895195,1738830650485,-500.0,0.0001452,2]
[351895196,1738830650494,-160.0,0.00014534,3]
[351895197,1738830650504,-160.0,0.00014534,5]
[351895198,1738830650513,-500.0,0.00014575,2]
[351895199,1738830650523,-1522.58912945,0.0001459,2]
[351895200,1738830650533,-200.0,0.000146,4]
[351895201,1738830650543,-200.0,0.000146,5]
[351895202,1738830650552,-200.0,0.000146,6]
[351895203,1738830650562,-200.0,0.000146,7]
[351895204,1738830650572,-200.0,0.000146,8]
[351895205,1738830650581,-200.0,0.000146,8]
[351895206,1738830650590,-200.0,0.000146,7]
[351895207,1738830650599,-200.0,0.000146,6]
[351895208,1738830650609,-200.0,0.000146,5]
[351895209,1738830650618,-200.0,0.000146,4]
[351895210,1738830650628,-187.43,0.000146,7]
[351895211,1738830650637,-187.43,0.000146,6]
[351895212,1738830650647,-187.43,0.000146,6]
[351895213,1738830650657,-278.62566545,0.000146,7]
[351895214,1738830650668,-153.91001934,0.00014656,2]
[351895215,1738830650678,-500.0,0.00014657,2]
[351895216,1738830650687,-500.0,0.00014657,2]
[351895217,1738830650697,-506.41,0.00014657,2]
[351895218,1738830650708,-500.0,0.00014657,2]
[351895219,1738830650718,-535.16193502,0.00014657,2]
[351895220,1738830650729,-500.0,0.00014657,2]
[351895221,1738830650739,-1227.51,0.00014657,2]
[351895222,1738830650749,-500.0,0.00014657,2]
[351895223,1738830650759,-862.32,0.00014657,2]
[351895224,1738830650769,-500.0,0.00014657,2]
[351895225,1738830650778,-588.28,0.00014657,2]
[351895226,1738830650788,-500.0,0.00014657,2]
[351895227,1738830650799,-644.59,0.00014657,2]
[351895228,1738830650809,-500.0,0.00014657,2]
[351895229,1738830650819,-770.28,0.00014657,2]
[351895230,1738830650829,-500.0,0.00014657,2]
[351895231,1738830650839,-500.0,0.00014657,2]
[351895232,1738830650849,-555.92,0.00014657,2]
[351895233,1738830650859,-1058.7,0.00014657,2]
[351895234,1738830650868,-533.45,0.00014657,2]
[351895235,1738830650878,-514.94,0.00014657,2]
[351895236,1738830650888,-500.0,0.00014657,2]
[351895237,1738830650898,-500.0,0.00014657,2]
[351895238,1738830650907,-500.0,0.00014657,2]
[351895239,1738830650918,-500.0,0.00014657,2]
[351895240,1738830650927,-500.0,0.00014657,2]
[351895241,1738830650937,-936.17,0.00014657,2]
[351895242,1738830650947,-500.0,0.00014657,2]
[351895243,1738830650956,-500.0,0.00014657,2]
[351895244,1738830650966,-701.02,0.00014657,2]
[351895245,1738830650975,-500.0,0.00014657,2]
[351895246,1738830650986,-1028.5,0.00014657,2]
[351895247,1738830650995,-500.0,0.00014657,2]
[351895248,1738830651005,-1162.68,0.00014657,2]
[351895249,1738830651015,-500.0,0.00014657,2]
[351895250,1738830651024,-500.0,0.00014657,2]
[351895251,1738830651034,-637.29,0.00014657,2]
[351895252,1738830651044,-500.0,0.00014657,2]
[351895253,1738830651053,-151.0,0.00014657,2]
[351895254,1738830651063,-257.9393409,0.00014657,2]
[351895255,1738830651073,-14910.05,0.00014657,2]
[351895256,1738830651083,-598.64,0.00014657,2]
[351895257,1738830651093,-151.0,0.00014657,2]
[351895258,1738830651102,-500.0,0.00014657,2]
[351895259,1738830651113,-151.0,0.00014657,2]
[351895260,1738830651122,-1525.62,0.00014657,2]
[351895261,1738830651132,-728.43,0.00014657,2]
[351895262,1738830651142,-500.0,0.00014657,2]
[351895263,1738830651152,-500.0,0.00014657,2]
[351895264,1738830651162,-835.65,0.00014657,2]
[351895265,1738830651172,-500.0,0.00014657,2]
[351895266,1738830651182,-151.0,0.00014657,2]
[351895267,1738830651192,-658.57516512,0.00014657,2]
[351895268,1738830651527,-151.0,0.00014109,2]
[351895269,1738830651537,-151.0,0.00014109,2]
[351895270,1738830651547,-151.0,0.00014246,2]
[351895271,1738830651556,-151.0,0.00014246,2]
[351895272,1738830651566,-151.0,0.00014383,2]
[351895273,1738830651575,-1219.69227608,0.00014657,2]
[351895282,1738830972962,9721.61123451,0.000192,120]
[351895307,1738831546138,-768.34541382,0.00012305,2]
[351895308,1738831546166,-840.96088032,0.0001243,2]
[351895311,1738831628129,-192.6,0.00010959,2]
[351895312,1738831628152,-462.72283133,0.0001243,2]
[351895315,1738831638091,-419.22908625,0.0001243,2]
[351895316,1738831643102,-421.32357527,0.00012305,2]
[351895317,1738831643126,-361.123643,0.0001243,2]
[351895318,1738831652307,-810.64628645,0.00012305,2]
[351895325,1738831745130,-347.59380508,0.00010959,2]
[351895326,1738831746125,-198.13619492,0.00010959,2]
[351895327,1738831746148,-1324.33803764,0.00012305,2]
[351895328,1738831746169,-814.1275699,0.0001243,2]
[351895329,1738831746191,-300.0,0.00012509,2]
[351895330,1738831746211,-24900.0,0.0001251,2]
[351895331,1738831746231,-197.33131097,0.0001305,2]
[351895332,1738831746251,-2046.19331019,0.0001305,2]
[351895333,1738831746274,-800.0,0.0001315,2]
[351895334,1738831746294,-553.37832925,0.00013212,2]
[351895335,1738831746315,-7065.11516483,0.00013311,2]
[351895339,1738831759155,-900.0,0.0001315,2]
[351895340,1738831759177,-921.49135093,0.0001331,2]
[351895341,1738831763148,-6282.2018,0.0001331,2]
[351895359,1738831832143,-462.46397076,0.00013309,2]
[351895361,1738831832196,-6976.23356202,0.00013309,2]
[351895362,1738831832207,-411.24580209,0.00013324,2]
[351895363,1738831832216,-157.39731704,0.00013598,2]
[351895364,1738831832227,-762.26272643,0.00013598,2]
[351895365,1738831832236,-484.20603812,0.00013598,2]
[351895366,1738831832246,-300.0,0.00013696,2]
[351895367,1738831832256,-500.0,0.00013697,2]
[351895368,1738831832265,-300.0,0.00013697,2]
[351895369,1738831832274,-206.74762007,0.00013697,2]
[351895370,1738831832283,-500.0,0.00013697,2]
[351895371,1738831832293,-500.0,0.00013697,2]
[351895372,1738831832302,-500.0,0.00013697,2]
[351895373,1738831832311,-500.0,0.00013697,2]
[351895374,1738831832320,-500.0,0.00013697,2]
[351895375,1738831832330,-500.0,0.00013697,2]
[351895376,1738831832339,-500.0,0.00013697,2]
[351895377,1738831832348,-500.0,0.00013697,2]
[351895378,1738831832358,-500.0,0.00013697,2]
[351895379,1738831832368,-217.63959756,0.00013697,2]
[351895380,1738831832378,-500.0,0.00013697,2]
[351895381,1738831832388,-286.95987209,0.00013697,2]
[351895382,1738831832398,-500.0,0.00013698,2]
[351895383,1738831832408,-500.0,0.00013698,2]
[351895384,1738831832417,-500.0,0.00013698,2]
[351895385,1738831832427,-500.0,0.00013698,2]
[351895386,1738831832437,-500.0,0.00013698,2]
[351895387,1738831832447,-500.0,0.00013698,2]
[351895388,1738831832456,-500.0,0.00013698,2]
[351895389,1738831832466,-500.0,0.00013698,2]
[351895390,1738831832478,-500.0,0.00013698,2]
[351895391,1738831832487,-500.0,0.00013698,2]
[351895392,1738831832497,-500.0,0.00013698,2]
[351895393,1738831832506,-434.76973342,0.00013698,2]
[351895394,1738831832516,-500.0,0.00013698,2]
[351895395,1738831832528,-500.0,0.00013698,2]
[351895396,1738831832537,-503.30095877,0.00013698,2]
[351895397,1738831832547,-500.0,0.00013698,2]
[351895398,1738831832558,-502.07914321,0.00013698,2]
[351895399,1738831832567,-500.0,0.00013698,2]
[351895400,1738831832577,-500.0,0.00013698,2]
[351895401,1738831832586,-500.0,0.00013698,2]
[351895402,1738831832596,-501.74539043,0.00013698,2]
[351895403,1738831832605,-502.27482034,0.00013698,2]
[351895404,1738831832615,-583.1473004,0.00013698,2]
[351895405,1738831832624,-500.0,0.00013698,2]
[351895406,1738831832633,-500.0,0.00013698,2]
[351895407,1738831832643,-500.0,0.00013698,2]
[351895408,1738831832652,-500.0,0.00013698,2]
[351895409,1738831832661,-500.0,0.00013698,2]
[351895410,1738831832671,-503.28146035,0.00013698,2]
[351895411,1738831832680,-504.97403418,0.00013698,2]
[351895412,1738831832690,-500.0,0.00013698,2]
[351895413,1738831832699,-500.0,0.00013698,2]
[351895414,1738831832709,-500.68729886,0.00013698,2]
[351895415,1738831832718,-500.0,0.00013698,2]
[351895416,1738831832729,-500.0,0.00013698,2]
[351895417,1738831832739,-500.0,0.00013698,2]
[351895418,1738831832748,-500.0,0.00013698,2]
[351895419,1738831832757,-500.0,0.00013698,2]
[351895420,1738831832768,-500.0,0.00013698,2]
[351895421,1738831832777,-500.0,0.00013698,2]
[351895422,1738831832787,-500.0,0.00013698,2]
[351895423,1738831832796,-1066.02,0.00013698,2]
[351895424,1738831832806,-502.32481971,0.00013698,2]
[351895425,1738831832815,-500.0,0.00013698,2]
[351895426,1738831832824,-501.69327094,0.00013698,2]
[351895427,1738831832834,-1044.03,0.00013698,2]
[351895428,1738831832843,-500.0,0.00013698,2]
[351895429,1738831832853,-500.0,0.00013698,2]
[351895430,1738831832863,-314.82547753,0.00013698,2]
[351895431,1738831832873,-3093.43,0.00013698,2]
[351895432,1738831832882,-507.83812188,0.00013698,2]
[351895433,1738831832892,-500.0,0.00013698,2]
[351895434,1738831832902,-500.0,0.00013698,2]
[351895435,1738831832911,-504.98460337,0.00013698,2]
[351895436,1738831832921,-501.00463615,0.00013698,2]
[351895437,1738831832930,-303.78036117,0.00013698,2]
[351895438,1738831832940,-500.0,0.00013698,2]
[351895439,1738831832949,-500.0,0.00013698,2]
[351895440,1738831832959,-500.0,0.00013698,2]
[351895441,1738831832968,-500.0,0.00013698,2]
[351895442,1738831832980,-500.0,0.00013698,2]
[351895443,1738831832989,-500.0,0.00013698,2]
[351895444,1738831832999,-500.0,0.00013698,2]
[351895445,1738831833009,-560.09,0.00013698,2]
[351895446,1738831833019,-500.0,0.00013698,2]
[351895447,1738831833029,-500.0,0.00013698,2]
[351895448,1738831833038,-150.17537591,0.00013698,2]
[351895449,1738831833047,-500.0,0.00013698,2]
[351895450,1738831833057,-500.0,0.00013698,2]
[351895451,1738831833066,-500.0,0.00013698,2]
[351895452,1738831833076,-500.0,0.00013698,2]
[351895453,1738831833085,-500.0,0.00013698,2]
[351895454,1738831833095,-500.0,0.00013698,2]
[351895455,1738831833105,-500.0,0.00013698,2]
[351895456,1738831833115,-1146.05,0.00013698,2]
[351895457,1738831833125,-502.62631412,0.00013698,2]
[351895458,1738831833135,-227.75687959,0.00013698,2]
[351895459,1738831833145,-500.0,0.00013698,2]
[351895460,1738831833157,-508.6403079,0.00013698,2]
[351895461,1738831833170,-500.0,0.00013698,2]
[351895462,1738831833180,-500.0,0.00013698,2]
[351895463,1738831833189,-500.0,0.00013698,2]
[351895464,1738831833199,-500.0,0.00013698,2]
[351895465,1738831833209,-500.0,0.00013698,2]
[351895466,1738831833219,-355.13731199,0.00013698,2]
[351895467,1738831833229,-500.0,0.00013698,2]
[351895468,1738831833240,-500.0,0.00013698,2]
[351895469,1738831833250,-500.0,0.00013698,2]
[351895470,1738831833259,-500.0,0.00013698,2]
[351895471,1738831833268,-500.0,0.00013698,2]
[351895472,1738831833277,-569.58,0.00013698,2]
[351895473,1738831833286,-500.0,0.00013698,2]
[351895474,1738831833297,-728.1,0.00013698,2]
[351895475,1738831833306,-1215.7,0.00013698,2]
[351895476,1738831833316,-500.0,0.00013698,2]
[351895477,1738831833326,-500.0,0.00013698,2]
[351895478,1738831833335,-500.0,0.00013698,2]
[351895479,1738831833345,-641.33535619,0.00013698,2]
[351895480,1738831833354,-500.0,0.00013698,2]
[351895481,1738831833364,-500.0,0.00013698,2]
[351895482,1738831833373,-500.0,0.00013698,2]
[351895483,1738831833383,-500.0,0.00013698,2]
[351895484,1738831833394,-500.0,0.00013698,2]
[351895485,1738831833404,-500.0,0.00013698,2]
[351895486,1738831833415,-500.0,0.00013698,2]
[351895487,1738831833425,-500.0,0.00013698,2]
[351895488,1738831833435,-500.0,0.00013698,2]
[351895489,1738831833445,-530.43,0.00013698,2]
[351895490,1738831833455,-882.07,0.00013698,2]